[Event "Late-Titled-Tuesday-Blitz-June-25-2024"]
[Site "Chess.com"]
[Date "2024.06.25"]
[Round "2"]
[White "koncheto"]
[Black "rionelG"]
[Result "0-1"]
[WhiteElo "2567"]
[BlackElo "2376"]
[TimeControl "180+1"]
[EndTime "14:17:03 PDT"]
[Termination "rionelG won on time"]

1. e4 {[%clk 0:03:00.9]} 1... c5 {[%clk 0:02:59.3]} 2. Nf3 {[%clk 0:02:44.4]}
2... d6 {[%clk 0:02:39.6]} 3. d4 {[%clk 0:02:42.4]} 3... cxd4 {[%clk 0:02:40.5]}
4. Nxd4 {[%clk 0:02:43.3]} 4... Nf6 {[%clk 0:02:40.4]} 5. f3 {[%clk 0:02:33.6]}
5... e5 {[%clk 0:02:37.7]} 6. Nb3 {[%clk 0:02:33.5]} 6... d5 {[%clk 0:02:37.2]}
7. Bg5 {[%clk 0:02:27.7]} 7... d4 {[%clk 0:02:32]} 8. c3 {[%clk 0:02:26.1]} 8...
Nc6 {[%clk 0:02:30]} 9. Bb5 {[%clk 0:02:25.1]} 9... Be7 {[%clk 0:02:05.4]} 10.
cxd4 {[%clk 0:02:23.4]} 10... exd4 {[%clk 0:02:02.9]} 11. Qxd4 {[%clk
0:02:23.4]} 11... O-O {[%clk 0:01:57.9]} 12. Qxd8 {[%clk 0:02:22.6]} 12... Rxd8
{[%clk 0:01:57.1]} 13. O-O {[%clk 0:02:22.2]} 13... h6 {[%clk 0:01:51]} 14. Be3
{[%clk 0:02:18]} 14... Nb4 {[%clk 0:01:50.8]} 15. Na3 {[%clk 0:02:07.3]} 15...
Be6 {[%clk 0:01:46.5]} 16. Nd4 {[%clk 0:02:03.3]} 16... Bxa2 {[%clk 0:01:35.5]}
17. Rfd1 {[%clk 0:01:57.8]} 17... a6 {[%clk 0:01:32.7]} 18. Be2 {[%clk
0:01:55.8]} 18... Bf8 {[%clk 0:01:23.3]} 19. Bc4 {[%clk 0:01:40.8]} 19... Bxc4
{[%clk 0:01:19.8]} 20. Nxc4 {[%clk 0:01:41.7]} 20... Rac8 {[%clk 0:01:17]} 21.
Nb6 {[%clk 0:01:31.9]} 21... Rc7 {[%clk 0:01:07]} 22. Rac1 {[%clk 0:01:31]}
22... Bc5 {[%clk 0:00:48]} 23. e5 {[%clk 0:00:19.3]} 23... Bxb6 {[%clk
0:00:19.6]} 24. Rxc7 {[%clk 0:00:15.7]} 24... Nfd5 {[%clk 0:00:18.5]} 25. Rxb7
{[%clk 0:00:09.2]} 25... Nxe3 {[%clk 0:00:18.6]} 26. Rxb6 {[%clk 0:00:09.3]}
26... Nxd1 {[%clk 0:00:18.6]} 27. Rxb4 {[%clk 0:00:09.5]} 27... Ne3 {[%clk
0:00:17.8]} 28. Kf2 {[%clk 0:00:06.6]} 28... Nd5 {[%clk 0:00:16.9]} 29. Ra4
{[%clk 0:00:06.8]} 29... Nf4 {[%clk 0:00:15.1]} 30. Nc6 {[%clk 0:00:04.5]} 30...
Rd2+ {[%clk 0:00:12.1]} 31. Ke3 {[%clk 0:00:02.1]} 31... Rc2 {[%clk 0:00:12.5]}
0-1

[Event "Late-Titled-Tuesday-Blitz-June-25-2024"]
[Site "Chess.com"]
[Date "2024.06.25"]
[Round "2"]
[White "czasnaszachy"]
[Black "RandomNoob04"]
[Result "0-1"]
[WhiteElo "2479"]
[BlackElo "2812"]
[TimeControl "180+1"]
[EndTime "14:17:12 PDT"]
[Termination "RandomNoob04 won on time"]

1. d4 {[%clk 0:03:00.9]} 1... Nf6 {[%clk 0:03:00]} 2. c4 {[%clk 0:03:00.7]} 2...
c5 {[%clk 0:03:00.7]} 3. d5 {[%clk 0:03:00.3]} 3... b5 {[%clk 0:03:01.1]} 4.
cxb5 {[%clk 0:03:00.5]} 4... a6 {[%clk 0:03:01.8]} 5. e3 {[%clk 0:03:00.8]} 5...
axb5 {[%clk 0:03:01.7]} 6. Bxb5 {[%clk 0:03:00.6]} 6... Qa5+ {[%clk 0:03:02.4]}
7. Nc3 {[%clk 0:03:00.5]} 7... Bb7 {[%clk 0:03:03.1]} 8. Bd2 {[%clk 0:02:57.1]}
8... Qb6 {[%clk 0:03:03.7]} 9. a4 {[%clk 0:02:48.7]} 9... Nxd5 {[%clk
0:03:02.7]} 10. Nf3 {[%clk 0:02:48.5]} 10... e6 {[%clk 0:03:03.1]} 11. O-O
{[%clk 0:02:46.3]} 11... Be7 {[%clk 0:02:58.8]} 12. e4 {[%clk 0:02:46.3]} 12...
Nb4 {[%clk 0:02:56.4]} 13. Ne5 {[%clk 0:02:45.4]} 13... O-O {[%clk 0:02:56]} 14.
Qh5 {[%clk 0:02:33.4]} 14... Qc7 {[%clk 0:02:46.7]} 15. f4 {[%clk 0:02:29.9]}
15... d6 {[%clk 0:02:41.6]} 16. Nc4 {[%clk 0:02:16]} 16... N8c6 {[%clk 0:02:25]}
17. Bxc6 {[%clk 0:02:14.9]} 17... Bxc6 {[%clk 0:02:22.8]} 18. f5 {[%clk
0:02:13.5]} 18... exf5 {[%clk 0:02:12.1]} 19. Rf3 {[%clk 0:01:54.8]} 19... Bf6
{[%clk 0:00:50]} 20. Rh3 {[%clk 0:01:48.2]} 20... h6 {[%clk 0:00:50.1]} 21. Bxh6
{[%clk 0:01:48]} 21... g6 {[%clk 0:00:50.5]} 22. Qd1 {[%clk 0:00:43.7]} 22...
Bd4+ {[%clk 0:00:50.3]} 23. Kh1 {[%clk 0:00:43.2]} 23... fxe4 {[%clk 0:00:50.7]}
24. Bf4 {[%clk 0:00:33.2]} 24... Nd3 {[%clk 0:00:46.8]} 25. Rxd3 {[%clk
0:00:16.6]} 25... exd3 {[%clk 0:00:47.7]} 26. Nxd6 {[%clk 0:00:15.1]} 26... Qd7
{[%clk 0:00:34.8]} 27. Nce4 {[%clk 0:00:11.3]} 27... Bxe4 {[%clk 0:00:20.2]} 28.
Nxe4 {[%clk 0:00:11]} 28... Qf5 {[%clk 0:00:20.9]} 29. Qf3 {[%clk 0:00:07.1]}
29... d2 {[%clk 0:00:12]} 30. Nxd2 {[%clk 0:00:06.5]} 30... Rfe8 {[%clk
0:00:10.9]} 31. h3 {[%clk 0:00:03.6]} 31... Bxb2 {[%clk 0:00:10]} 32. Ra2 {[%clk
0:00:02.9]} 32... Be5 {[%clk 0:00:08.6]} 33. Bxe5 {[%clk 0:00:01.7]} 33... Qxe5
{[%clk 0:00:09.2]} 34. a5 {[%clk 0:00:01.4]} 34... Qc7 {[%clk 0:00:06.3]} 0-1

[Event "Late-Titled-Tuesday-Blitz-June-25-2024"]
[Site "Chess.com"]
[Date "2024.06.25"]
[Round "2"]
[White "BilodeauA"]
[Black "HaryKane"]
[Result "1-0"]
[WhiteElo "2996"]
[BlackElo "2614"]
[TimeControl "180+1"]
[EndTime "14:17:14 PDT"]
[Termination "BilodeauA won on time"]

1. e4 {[%clk 0:03:00.9]} 1... e6 {[%clk 0:02:59.6]} 2. d4 {[%clk 0:02:59.8]}
2... d5 {[%clk 0:02:59.5]} 3. Nd2 {[%clk 0:03:00.3]} 3... Nf6 {[%clk 0:02:51]}
4. e5 {[%clk 0:02:59.9]} 4... Nfd7 {[%clk 0:02:50.8]} 5. f4 {[%clk 0:03:00.1]}
5... c5 {[%clk 0:02:50.3]} 6. c3 {[%clk 0:03:00.5]} 6... Nc6 {[%clk 0:02:50.7]}
7. Ndf3 {[%clk 0:03:01]} 7... Be7 {[%clk 0:02:42]} 8. h4 {[%clk 0:03:00.6]} 8...
Qb6 {[%clk 0:02:41.8]} 9. h5 {[%clk 0:02:52.8]} 9... f6 {[%clk 0:02:38.3]} 10.
Bd3 {[%clk 0:02:45]} 10... cxd4 {[%clk 0:02:35.4]} 11. cxd4 {[%clk 0:02:43.6]}
11... Bb4+ {[%clk 0:02:10.9]} 12. Kf1 {[%clk 0:02:26.3]} 12... fxe5 {[%clk
0:01:58]} 13. dxe5 {[%clk 0:02:24.5]} 13... Nc5 {[%clk 0:01:54.4]} 14. a3 {[%clk
0:01:58.1]} 14... Nxd3 {[%clk 0:01:53.4]} 15. Qxd3 {[%clk 0:01:59]} 15... Be7
{[%clk 0:01:47.1]} 16. Ne2 {[%clk 0:01:56.1]} 16... Bd7 {[%clk 0:01:44.7]} 17.
b4 {[%clk 0:01:55.9]} 17... a6 {[%clk 0:01:38.2]} 18. Be3 {[%clk 0:01:49.2]}
18... Qb5 {[%clk 0:01:36.5]} 19. Qxb5 {[%clk 0:01:35.9]} 19... axb5 {[%clk
0:01:37.4]} 20. Kf2 {[%clk 0:01:36.3]} 20... O-O {[%clk 0:01:11.3]} 21. Ned4
{[%clk 0:01:28.1]} 21... Nxd4 {[%clk 0:01:02.6]} 22. Nxd4 {[%clk 0:01:26]} 22...
Rfc8 {[%clk 0:01:02.6]} 23. Rhc1 {[%clk 0:01:10.1]} 23... Kf7 {[%clk 0:01:02.3]}
24. g4 {[%clk 0:01:00.8]} 24... Rc4 {[%clk 0:01:00.8]} 25. Nf3 {[%clk
0:00:47.9]} 25... Rxc1 {[%clk 0:00:52.1]} 26. Rxc1 {[%clk 0:00:47.6]} 26... Rxa3
{[%clk 0:00:50.4]} 27. Rc7 {[%clk 0:00:48.1]} 27... Ke8 {[%clk 0:00:50.3]} 28.
Rxb7 {[%clk 0:00:48.2]} 28... Bxb4 {[%clk 0:00:49.3]} 29. Rb8+ {[%clk
0:00:30.1]} 29... Ke7 {[%clk 0:00:44.2]} 30. Bb6 {[%clk 0:00:30]} 30... h6
{[%clk 0:00:33.3]} 31. g5 {[%clk 0:00:27.9]} 31... Ra2+ {[%clk 0:00:32.3]} 32.
Kg3 {[%clk 0:00:27.1]} 32... Bc6 {[%clk 0:00:24.1]} 33. Rc8 {[%clk 0:00:22.1]}
33... Ba8 {[%clk 0:00:21.6]} 34. Rc7+ {[%clk 0:00:20.8]} 34... Kf8 {[%clk
0:00:20.2]} 35. g6 {[%clk 0:00:18.9]} 35... d4 {[%clk 0:00:09.7]} 36. Nxd4
{[%clk 0:00:18.9]} 36... Be1+ {[%clk 0:00:08.7]} 37. Kh3 {[%clk 0:00:15.2]}
37... Bg2+ {[%clk 0:00:05.7]} 38. Kg4 {[%clk 0:00:15.4]} 38... Ra3 {[%clk
0:00:03.2]} 39. Bc5+ {[%clk 0:00:14.9]} 39... Ke8 {[%clk 0:00:03.3]} 40. Bxa3
{[%clk 0:00:14.7]} 1-0

[Event "Late-Titled-Tuesday-Blitz-June-25-2024"]
[Site "Chess.com"]
[Date "2024.06.25"]
[Round "2"]
[White "vova-79"]
[Black "Murad_Ibrahimli"]
[Result "0-1"]
[WhiteElo "2600"]
[BlackElo "2891"]
[TimeControl "180+1"]
[EndTime "14:17:14 PDT"]
[Termination "Murad_Ibrahimli won by resignation"]

1. d4 {[%clk 0:03:00.9]} 1... Nf6 {[%clk 0:02:58.9]} 2. c4 {[%clk 0:03:00.3]}
2... b6 {[%clk 0:02:59.1]} 3. Nc3 {[%clk 0:02:57.6]} 3... Bb7 {[%clk 0:02:59.5]}
4. Nf3 {[%clk 0:02:50.7]} 4... e6 {[%clk 0:02:58.5]} 5. a3 {[%clk 0:02:49.6]}
5... Ne4 {[%clk 0:02:57.1]} 6. Nxe4 {[%clk 0:02:48.3]} 6... Bxe4 {[%clk
0:02:58]} 7. Nd2 {[%clk 0:02:48.2]} 7... Bb7 {[%clk 0:02:58.3]} 8. e4 {[%clk
0:02:47.9]} 8... g6 {[%clk 0:02:56.7]} 9. Bd3 {[%clk 0:02:47]} 9... Bg7 {[%clk
0:02:55.9]} 10. Nf3 {[%clk 0:02:45.2]} 10... Nc6 {[%clk 0:02:55.2]} 11. d5
{[%clk 0:02:39.9]} 11... Ne7 {[%clk 0:02:53]} 12. O-O {[%clk 0:02:35.8]} 12...
O-O {[%clk 0:02:52.3]} 13. Rb1 {[%clk 0:02:28.1]} 13... d6 {[%clk 0:02:44.9]}
14. b4 {[%clk 0:02:21.6]} 14... e5 {[%clk 0:02:42.9]} 15. c5 {[%clk 0:02:21]}
15... Bc8 {[%clk 0:02:42.3]} 16. Nd2 {[%clk 0:02:17.9]} 16... f5 {[%clk
0:02:40.1]} 17. f3 {[%clk 0:02:17.2]} 17... f4 {[%clk 0:02:36.4]} 18. a4 {[%clk
0:01:52.8]} 18... g5 {[%clk 0:02:33.6]} 19. cxd6 {[%clk 0:01:44.1]} 19... cxd6
{[%clk 0:02:33.2]} 20. b5 {[%clk 0:01:44.7]} 20... h5 {[%clk 0:02:28.4]} 21. Ba3
{[%clk 0:01:44.7]} 21... g4 {[%clk 0:02:26.9]} 22. Nc4 {[%clk 0:01:43.9]} 22...
Rf6 {[%clk 0:02:27.2]} 23. Nxe5 {[%clk 0:01:32.8]} 23... dxe5 {[%clk 0:02:25.8]}
24. d6 {[%clk 0:01:31.7]} 24... Ng6 {[%clk 0:02:25.3]} 25. Bc4+ {[%clk
0:01:24.2]} 25... Kh7 {[%clk 0:02:25.1]} 26. Qd5 {[%clk 0:01:14.5]} 26... Rb8
{[%clk 0:02:22.6]} 27. Rfd1 {[%clk 0:01:12.5]} 27... Bd7 {[%clk 0:02:22.3]} 28.
Bb3 {[%clk 0:01:08.1]} 28... gxf3 {[%clk 0:02:21.3]} 29. gxf3 {[%clk 0:01:07.5]}
29... Nh4 {[%clk 0:02:21.6]} 30. Kf2 {[%clk 0:01:06.8]} 30... Rc8 {[%clk
0:02:13.1]} 31. Rbc1 {[%clk 0:01:06]} 31... Rxc1 {[%clk 0:02:12.1]} 32. Rxc1
{[%clk 0:01:05.7]} 32... Rg6 {[%clk 0:02:11.6]} 33. Rc7 {[%clk 0:00:56.7]} 33...
Qg5 {[%clk 0:02:10.1]} 34. Rxd7 {[%clk 0:00:45.9]} 34... Qg1+ {[%clk 0:02:09.8]}
35. Ke2 {[%clk 0:00:45.5]} 35... Rg2+ {[%clk 0:01:39.1]} 36. Kd3 {[%clk
0:00:45.1]} 36... Qf1+ {[%clk 0:01:37.9]} 37. Kc3 {[%clk 0:00:44.9]} 37... Qa1+
{[%clk 0:01:31.7]} 38. Kb4 {[%clk 0:00:41.6]} 38... Qe1+ {[%clk 0:01:22.5]} 39.
Kc4 {[%clk 0:00:38.9]} 39... Nxf3 {[%clk 0:01:18]} 40. Rxg7+ {[%clk 0:00:08.7]}
40... Rxg7 {[%clk 0:01:18.9]} 41. d7 {[%clk 0:00:08.6]} 41... Nd2+ {[%clk
0:01:16]} 42. Kd3 {[%clk 0:00:07.9]} 42... Qe3+ {[%clk 0:00:51.5]} 43. Kc2
{[%clk 0:00:07.1]} 43... Nxb3 {[%clk 0:00:52.4]} 44. d8=Q {[%clk 0:00:05]} 44...
Nd4+ {[%clk 0:00:51.8]} 45. Qxd4 {[%clk 0:00:04.7]} 45... Qxd4 {[%clk
0:00:49.5]} 46. Qxd4 {[%clk 0:00:03.9]} 46... exd4 {[%clk 0:00:50.4]} 47. Bd6
{[%clk 0:00:03.7]} 47... f3 {[%clk 0:00:50.3]} 48. Bg3 {[%clk 0:00:02]} 48...
Rxg3 {[%clk 0:00:50.6]} 49. hxg3 {[%clk 0:00:02.7]} 49... f2 {[%clk 0:00:51]}
0-1

[Event "Late-Titled-Tuesday-Blitz-June-25-2024"]
[Site "Chess.com"]
[Date "2024.06.25"]
[Round "2"]
[White "DenisQ"]
[Black "Good_Knight_Kiss"]
[Result "0-1"]
[WhiteElo "2674"]
[BlackElo "2363"]
[TimeControl "180+1"]
[EndTime "14:17:15 PDT"]
[Termination "Good_Knight_Kiss won by checkmate"]

1. c4 {[%clk 0:03:00.9]} 1... Nf6 {[%clk 0:02:59.7]} 2. Nf3 {[%clk 0:02:58.8]}
2... g6 {[%clk 0:03:00]} 3. b4 {[%clk 0:02:57.7]} 3... Bg7 {[%clk 0:02:59.9]} 4.
Bb2 {[%clk 0:02:58.2]} 4... d6 {[%clk 0:03:00]} 5. g3 {[%clk 0:02:58.2]} 5...
O-O {[%clk 0:03:00.1]} 6. Bg2 {[%clk 0:02:58.1]} 6... e5 {[%clk 0:03:00]} 7. O-O
{[%clk 0:02:57.9]} 7... Nc6 {[%clk 0:02:56.6]} 8. b5 {[%clk 0:02:57]} 8... Ne7
{[%clk 0:02:56.7]} 9. d3 {[%clk 0:02:55.9]} 9... a6 {[%clk 0:02:54.4]} 10. a4
{[%clk 0:02:50.3]} 10... axb5 {[%clk 0:02:54.4]} 11. axb5 {[%clk 0:02:50.2]}
11... Rxa1 {[%clk 0:02:55.3]} 12. Bxa1 {[%clk 0:02:50.2]} 12... Bf5 {[%clk
0:02:54]} 13. Nbd2 {[%clk 0:02:45.8]} 13... Qd7 {[%clk 0:02:49.8]} 14. Re1
{[%clk 0:02:39.3]} 14... Bh3 {[%clk 0:02:40.8]} 15. Bh1 {[%clk 0:02:38.6]} 15...
h6 {[%clk 0:02:41]} 16. Qb3 {[%clk 0:02:35.9]} 16... Ng4 {[%clk 0:02:32.4]} 17.
Ne4 {[%clk 0:01:57.8]} 17... Kh8 {[%clk 0:02:22]} 18. c5 {[%clk 0:01:55.3]}
18... d5 {[%clk 0:02:14.5]} 19. Nc3 {[%clk 0:01:44.9]} 19... f5 {[%clk
0:02:00.2]} 20. Bg2 {[%clk 0:01:22.9]} 20... Bxg2 {[%clk 0:01:58.5]} 21. Kxg2
{[%clk 0:01:23.8]} 21... e4 {[%clk 0:01:52.6]} 22. Ng1 {[%clk 0:01:18.1]} 22...
d4 {[%clk 0:01:29.7]} 23. Nd1 {[%clk 0:01:10.2]} 23... Nd5 {[%clk 0:01:22.3]}
24. h3 {[%clk 0:01:00.9]} 24... Ne5 {[%clk 0:01:01.9]} 25. Bxd4 {[%clk
0:00:59.2]} 25... Ra8 {[%clk 0:00:34.4]} 26. dxe4 {[%clk 0:00:52.3]} 26... fxe4
{[%clk 0:00:34.3]} 27. Nc3 {[%clk 0:00:47.6]} 27... Nxc3 {[%clk 0:00:21.1]} 28.
Qxc3 {[%clk 0:00:48.5]} 28... Qd5 {[%clk 0:00:19.5]} 29. e3 {[%clk 0:00:32.1]}
29... Ra2 {[%clk 0:00:17.1]} 30. Ne2 {[%clk 0:00:26.2]} 30... g5 {[%clk
0:00:17.1]} 31. c6 {[%clk 0:00:14.3]} 31... bxc6 {[%clk 0:00:14.8]} 32. bxc6
{[%clk 0:00:15.2]} 32... Kh7 {[%clk 0:00:14.9]} 33. Bxe5 {[%clk 0:00:13.8]}
33... Bxe5 {[%clk 0:00:13.9]} 34. Qc1 {[%clk 0:00:14.4]} 34... Qf7 {[%clk
0:00:07.9]} 35. Qb1 {[%clk 0:00:13.3]} 35... Qf3+ {[%clk 0:00:07.4]} 36. Kf1
{[%clk 0:00:10.7]} 36... Rxe2 {[%clk 0:00:07.5]} 37. Qxe4+ {[%clk 0:00:02.8]}
37... Qxe4 {[%clk 0:00:07.6]} 38. Rxe2 {[%clk 0:00:03.2]} 38... Qh1# {[%clk
0:00:07.5]} 0-1

[Event "Late-Titled-Tuesday-Blitz-June-25-2024"]
[Site "Chess.com"]
[Date "2024.06.25"]
[Round "2"]
[White "FredddieCroderg"]
[Black "Necromon"]
[Result "0-1"]
[WhiteElo "2345"]
[BlackElo "2558"]
[TimeControl "180+1"]
[EndTime "14:17:20 PDT"]
[Termination "Necromon won on time"]

1. e4 {[%clk 0:02:52.6]} 1... c5 {[%clk 0:02:54.3]} 2. Bc4 {[%clk 0:02:51.2]}
2... Nc6 {[%clk 0:02:53.9]} 3. d3 {[%clk 0:02:49.1]} 3... g6 {[%clk 0:02:52.9]}
4. Qf3 {[%clk 0:02:48.7]} 4... Ne5 {[%clk 0:02:52.4]} 5. Qg3 {[%clk 0:02:48.4]}
5... Nxc4 {[%clk 0:02:52.7]} 6. dxc4 {[%clk 0:02:48.4]} 6... Bg7 {[%clk
0:02:52.6]} 7. Nc3 {[%clk 0:02:48.4]} 7... d6 {[%clk 0:02:52.3]} 8. Bg5 {[%clk
0:02:41]} 8... Be6 {[%clk 0:02:51.7]} 9. O-O-O {[%clk 0:02:32.9]} 9... Qa5
{[%clk 0:02:48.9]} 10. f4 {[%clk 0:02:25.2]} 10... h6 {[%clk 0:02:38.6]} 11. Bh4
{[%clk 0:02:23.9]} 11... Bxc4 {[%clk 0:02:38.6]} 12. e5 {[%clk 0:02:20.9]} 12...
g5 {[%clk 0:02:31.8]} 13. exd6 {[%clk 0:02:11.2]} 13... O-O-O {[%clk 0:02:31]}
14. fxg5 {[%clk 0:02:06.6]} 14... hxg5 {[%clk 0:02:25]} 15. Bxg5 {[%clk
0:02:05.1]} 15... Nf6 {[%clk 0:02:20.9]} 16. dxe7 {[%clk 0:01:58.9]} 16... Rxd1+
{[%clk 0:02:20.3]} 17. Kxd1 {[%clk 0:01:58.7]} 17... Re8 {[%clk 0:02:01.1]} 18.
Qd6 {[%clk 0:01:45.6]} 18... Qc7 {[%clk 0:01:41.9]} 19. Qxc7+ {[%clk 0:01:40.4]}
19... Kxc7 {[%clk 0:01:42.8]} 20. b3 {[%clk 0:01:31]} 20... Be6 {[%clk 0:01:38]}
21. Nf3 {[%clk 0:01:24.7]} 21... Rxe7 {[%clk 0:01:37.1]} 22. Kc1 {[%clk
0:01:18.4]} 22... Rd7 {[%clk 0:01:18.4]} 23. Rd1 {[%clk 0:01:09.1]} 23... a6
{[%clk 0:01:15]} 24. Rxd7+ {[%clk 0:01:08.2]} 24... Nxd7 {[%clk 0:01:15.7]} 25.
Ne4 {[%clk 0:01:05.1]} 25... b5 {[%clk 0:01:13.5]} 26. Kd2 {[%clk 0:01:01.3]}
26... Kc6 {[%clk 0:01:12.3]} 27. Ke3 {[%clk 0:00:57.7]} 27... a5 {[%clk
0:01:05.4]} 28. h4 {[%clk 0:00:56.5]} 28... f5 {[%clk 0:01:00.2]} 29. Nf2 {[%clk
0:00:49]} 29... Nf6 {[%clk 0:00:48.4]} 30. Nd3 {[%clk 0:00:42.3]} 30... Nd5+
{[%clk 0:00:40.3]} 31. Ke2 {[%clk 0:00:27.5]} 31... Nc3+ {[%clk 0:00:37.4]} 32.
Kd2 {[%clk 0:00:25]} 32... Nxa2 {[%clk 0:00:37.5]} 33. h5 {[%clk 0:00:24.5]}
33... a4 {[%clk 0:00:37.7]} 34. bxa4 {[%clk 0:00:21]} 34... bxa4 {[%clk
0:00:37.9]} 35. h6 {[%clk 0:00:21]} 35... Bh8 {[%clk 0:00:37.8]} 36. h7 {[%clk
0:00:20]} 36... a3 {[%clk 0:00:35.5]} 37. Bf4 {[%clk 0:00:19.1]} 37... Nc3
{[%clk 0:00:27.6]} 38. Nc1 {[%clk 0:00:18.1]} 38... Ne4+ {[%clk 0:00:22.8]} 39.
Ke3 {[%clk 0:00:15.6]} 39... a2 {[%clk 0:00:22.1]} 40. Be5 {[%clk 0:00:14.9]}
40... Nf6 {[%clk 0:00:21.8]} 41. Ng5 {[%clk 0:00:14]} 41... Ng4+ {[%clk
0:00:21.3]} 42. Kd2 {[%clk 0:00:10.2]} 42... Bxe5 {[%clk 0:00:21.5]} 43. Nxa2
{[%clk 0:00:02.6]} 43... Bxa2 {[%clk 0:00:21.6]} 0-1

[Event "Late-Titled-Tuesday-Blitz-June-25-2024"]
[Site "Chess.com"]
[Date "2024.06.25"]
[Round "2"]
[White "HajiyevKanan"]
[Black "Durarbayli"]
[Result "0-1"]
[WhiteElo "2604"]
[BlackElo "2957"]
[TimeControl "180+1"]
[EndTime "14:17:23 PDT"]
[Termination "Durarbayli won by resignation"]

1. d4 {[%clk 0:03:00.9]} 1... e6 {[%clk 0:03:00.2]} 2. Nf3 {[%clk 0:03:00.8]}
2... Nf6 {[%clk 0:02:59.3]} 3. c4 {[%clk 0:03:00.8]} 3... b6 {[%clk 0:02:58.6]}
4. e3 {[%clk 0:03:00.5]} 4... Bb7 {[%clk 0:02:58.7]} 5. Be2 {[%clk 0:03:01]}
5... d5 {[%clk 0:02:58.7]} 6. cxd5 {[%clk 0:02:59.9]} 6... exd5 {[%clk
0:02:58.6]} 7. O-O {[%clk 0:03:00.3]} 7... Bd6 {[%clk 0:02:58.4]} 8. Nc3 {[%clk
0:03:00.8]} 8... a6 {[%clk 0:02:58.6]} 9. Ne5 {[%clk 0:03:01.1]} 9... O-O {[%clk
0:02:43.6]} 10. f4 {[%clk 0:03:01.2]} 10... c5 {[%clk 0:02:41.2]} 11. Bf3 {[%clk
0:03:01.2]} 11... cxd4 {[%clk 0:02:27.6]} 12. exd4 {[%clk 0:03:00.5]} 12... b5
{[%clk 0:02:25.4]} 13. a3 {[%clk 0:02:53.7]} 13... Ne4 {[%clk 0:02:11.4]} 14.
Be3 {[%clk 0:02:44.3]} 14... Nd7 {[%clk 0:01:52.6]} 15. Rc1 {[%clk 0:02:43]}
15... Nb6 {[%clk 0:01:52.6]} 16. Qe1 {[%clk 0:02:11]} 16... f6 {[%clk
0:01:50.2]} 17. Nd3 {[%clk 0:02:02.2]} 17... Nc4 {[%clk 0:01:47.3]} 18. Rc2
{[%clk 0:01:38.1]} 18... Rc8 {[%clk 0:01:33.5]} 19. Bxe4 {[%clk 0:01:23.9]}
19... dxe4 {[%clk 0:01:33.8]} 20. Nc5 {[%clk 0:01:24.5]} 20... Bxc5 {[%clk
0:01:34.4]} 21. dxc5 {[%clk 0:01:23]} 21... Qe7 {[%clk 0:01:04.1]} 22. Nb1
{[%clk 0:00:40]} 22... Rfd8 {[%clk 0:00:59]} 23. b3 {[%clk 0:00:36.7]} 23...
Nxe3 {[%clk 0:00:58.5]} 24. Qxe3 {[%clk 0:00:37.2]} 24... Rd3 {[%clk 0:00:58.9]}
25. Qc1 {[%clk 0:00:30.6]} 25... Rxb3 {[%clk 0:00:52.1]} 26. c6 {[%clk 0:00:31]}
26... Ba8 {[%clk 0:00:52.2]} 27. Re1 {[%clk 0:00:26.5]} 27... Rd3 {[%clk
0:00:39.4]} 28. Nd2 {[%clk 0:00:22]} 28... f5 {[%clk 0:00:31.5]} 29. Nf3 {[%clk
0:00:20.7]} 29... Qxa3 {[%clk 0:00:31.2]} 30. Qxa3 {[%clk 0:00:14.4]} 30... Rxa3
{[%clk 0:00:32.1]} 31. Nd4 {[%clk 0:00:15.1]} 31... g6 {[%clk 0:00:29.3]} 32.
Kf2 {[%clk 0:00:06.7]} 32... Kf7 {[%clk 0:00:28.2]} 33. Re3 {[%clk 0:00:03.9]}
33... Ra4 {[%clk 0:00:26.6]} 34. Nb3 {[%clk 0:00:03.5]} 34... Rxc6 {[%clk
0:00:25.1]} 35. Rd2 {[%clk 0:00:02.1]} 35... Rc7 {[%clk 0:00:24]} 36. Nd4 {[%clk
0:00:02.3]} 36... Rd7 {[%clk 0:00:21.2]} 37. Nb3 {[%clk 0:00:02.7]} 37... Rxd2+
{[%clk 0:00:21.6]} 38. Nxd2 {[%clk 0:00:03.6]} 38... Bd5 {[%clk 0:00:21.6]} 39.
Re2 {[%clk 0:00:03.7]} 39... Ra2 {[%clk 0:00:21.3]} 40. Ke3 {[%clk 0:00:04.1]}
40... b4 {[%clk 0:00:21.6]} 41. Nb1 {[%clk 0:00:03.6]} 41... Rxe2+ {[%clk
0:00:22.5]} 42. Kxe2 {[%clk 0:00:04.1]} 42... a5 {[%clk 0:00:19.5]} 43. Kd2
{[%clk 0:00:04.7]} 43... a4 {[%clk 0:00:20]} 44. Kc2 {[%clk 0:00:05.1]} 44... a3
{[%clk 0:00:20.5]} 45. Nd2 {[%clk 0:00:04.8]} 45... e3 {[%clk 0:00:20.9]} 46.
Nb1 {[%clk 0:00:04.5]} 46... a2 {[%clk 0:00:20.6]} 47. Kb2 {[%clk 0:00:02.6]}
47... e2 {[%clk 0:00:19]} 0-1